Cogmind - Beta 15 @@@ ROGUE MODE // 2025.09.04 @ 14:58:54 Player: Sooner535 Result: Destroyed by G-47 Trooper with Particle Gun Performance ------------- Evolutions (3) 1500 Regions Visited (6) 1200 Robots Destroyed (44) 220 Value Destroyed (1169) 1169 Prototype IDs (4) 80 Alien Tech Used (0) 0 Bonus (0) 0 TOTAL SCORE: 4169 Bonus ------- None Cogmind --------- Core Integrity 0/700 Matter 300/300 Energy 100/100 System Corruption 1% Temperature Cool (18) Movement Core (50) Location -7/Lower Caves Parts ------- > --- POWER (2) -------- (None) > --- PROPULSION (5) --- (None) > --- UTILITY (4) ------ Improved Signal Interpreter Improved Targeting Computer Target Analyzer > --- WEAPON (2) ------- (None) > --- INVENTORY (5) ---- Machine Analyzer Hardened Light Armor Plating Hacking Suite Peak State ------------ > --- POWER ------------ Light Ion Engine Improved Deuterium Engine > --- PROPULSION ------- Light Treads > --- UTILITY ---------- Small Storage Unit Visual Processing Unit Improved Signal Interpreter Reactive Plating > --- WEAPON ----------- Heavy Particle Gun Cooled Pulse Rifle > --- INVENTORY -------- Light Deuterium Engine Machine Analyzer Improved Targeting Computer Target Analyzer Hacking Suite Beam Rifle Advanced Beam Rifle [Rating: 26] Favorites ----------- Power Enhanced Nuclear Core Engine Light Deuterium Engine Power Core Enhanced Nuclear Core Propulsion Flight Unit Treads Light Treads Wheel Compact Wheel Hover Unit Gravmag System Flight Unit Flight Unit Utility Improved Signal Interpreter Device ECM Suite Storage Small Storage Unit Processor Improved Signal Interpreter Hackware Hacking Suite Protection Reactive Plating Weapon Heavy Particle Gun Energy Gun Heavy Particle Gun Ballistic Gun Shotgun Build | -11 -10 -9 -9 -8 -7 -7 ------- Run | Yrd Mat Mat Min Mat Fac Low Slots Evolved 6 | . . 2 . 2 2 . Power 1 | . . 1 . . . . Propulsion 3 | . . 1 . 2 . . Utility 2 | . . . . . 2 . Weapon . | . . . . . . . Parts Attached 54 | 7 6 11 1 11 13 5 Power 13 | 2 1 2 . 3 4 1 Engine 11 | 2 1 2 . 2 3 1 Core 2 | . . . . 1 1 . Reactor . | . . . . . . . Propulsion 18 | 2 2 5 . 6 3 . Treads 2 | . . . . . 2 . Leg . | . . . . . . . Wheel 4 | 2 2 . . . . . Hover 1 | . . . . . 1 . Flight 11 | . . 5 . 6 . . Utility 11 | 1 1 2 1 . 3 3 Device 1 | . . . 1 . . . Storage 3 | 1 . 1 . . . 1 Processor 4 | . . 1 . . 1 2 Hackware 1 | . . . . . 1 . Protection 2 | . 1 . . . 1 . Artifact . | . . . . . . . Weapon 12 | 2 2 2 . 2 3 1 Energy Gun 4 | . . . . . 3 1 Energy Cannon . | . . . . . . . Ballistic Gun 8 | 2 2 2 . 2 . . Ballistic Cannon . | . . . . . . . Launcher . | . . . . . . . Special Weapon . | . . . . . . . Impact Weapon . | . . . . . . . Slashing Weapon . | . . . . . . . Piercing Weapon . | . . . . . . . Special Melee Weapon . | . . . . . . . Unidentified Prototypes 4 | . . . . . 3 1 Parts Lost 35 | . 3 2 . 9 14 7 Power 11 | . 1 . . 3 4 3 Propulsion 15 | . 2 2 . 5 6 . Utility 3 | . . . . . 1 2 Weapon 6 | . . . . 1 3 2 Highest Loss Streak 7 | . 2 1 . 3 7 5 To Critical Strikes . | . . . . . . . Average Backups 5 | 2 5 4 5 4 6 5 Power . | 1 . . 1 1 . . Propulsion . | . 3 2 3 . . . Utility 3 | . . . 1 1 4 4 Weapon . | . 1 1 . . 1 . Tool/Special . | . . . . . . . Unused Backups 6 | . 3 . . . . 3 Power . | . . . . . . . Propulsion 1 | . 1 . . . . . Utility 4 | . 1 . . . . 3 Weapon 1 | . 1 . . . . . Tool/Special . | . . . . . . . Average Slot Usage (%) 56 | . 85 82 88 86 60 46 Engine 7 | . 13 21 22 14 7 3 Core 4 | . . . . . . 6 Wheel 2 | . 27 . . . . . Flight 4 | . . 30 33 38 1 . Storage 7 | . 14 . . 8 7 7 Processor 7 | . . 7 11 9 12 7 Protection 3 | . 1 . . . 5 3 Energy Gun 11 | . . . . . 12 14 Ballistic Gun 5 | . 28 22 22 15 1 . Peak Build Rating 26 | 6 10 12 12 14 26 24 Average Rating 18 | 3 6 10 11 12 21 21 On Entrance 10 | . 6 10 11 11 14 20 Naked Turns . | . . . . . . . Heaviest Build 35 | 14 17 12 12 17 35 33 Greatest Support 40 | 26 32 12 12 20 40 3 Greatest Overweight (x) 11 | . . 1 . 2 11 10 Average Overweight (x) 2 | . . . . . 1 8 Largest Inventory Capacity 10 | 8 8 8 5 8 8 10 Average Capacity 8 | 6 8 5 5 7 8 8 Most Carried 8 | 5 8 8 5 8 8 7 Average Carried 5 | 2 5 4 4 4 6 5 Final Capacity 8 | 8 8 5 5 8 8 5 Final Carried 8 | 2 8 5 5 6 6 3 Class Distribution -------------------- 80% | Mutant 16% | Scavenger-Mutant 3% | Scavenger-Sprinter Dominant Class ---------------- Mutant | -10/Materials Scavenger-Mutant | -9/Materials Scavenger-Mutant | -9/Mines Scavenger-Sprinter | -8/Materials Mutant | -7/Factory Mutant | -7/Lower Caves Resources | -11 -10 -9 -9 -8 -7 -7 ----------- Run | Yrd Mat Mat Min Mat Fac Low Matter Collected 1497 | 211 448 250 61 141 338 48 Remotely . | . . . . . . . Salvage Created 1603 | . 410 240 . 159 684 110 Parts 86 | . 19 24 . 11 27 5 Haulers Intercepted . | . . . . . . . Recyclers Shooed 3 | . 2 . . . 1 . Parts Field Recycled . | . . . . . . . Retrieved Matter . | . . . . . . . Parts Self-Destructed 4 | . . . . . . 4 Prevented . | . . . . . . . Kills | -11 -10 -9 -9 -8 -7 -7 ------- Run | Yrd Mat Mat Min Mat Fac Low Combat Hostiles Destroyed 34 | . 5 11 . 6 10 2 Guns 33 | . 5 11 . 6 9 2 Classes Destroyed 8 | . 5 . . 2 1 . Recycler 5 | . 3 . . . 2 . Operator 1 | . 1 . . . . . Watcher 4 | . 1 2 . . 1 . Swarmer 17 | . 3 8 . 4 . 2 Grunt 8 | . 2 3 . . 3 . Sentry 4 | . . . . 1 3 . Hunter 1 | . . . . 1 . . Programmer 4 | . . . . . 4 . Best Kill Streak 5 | . 3 5 . 4 3 2 Combat Bots Only 5 | . 1 5 . 4 2 2 Max Kills in Single Turn 2 | . 1 2 . 2 1 1 Gunslinging 1 | . . 1 . 1 . . Exploded . | . . . . . . . Melee . | . . . . . . . Uniques/NPCs Destroyed . | . . . . . . . Combat | -11 -10 -9 -9 -8 -7 -7 -------- Run | Yrd Mat Mat Min Mat Fac Low Hostile Shots Fired 460 | . 52 30 . 70 232 76 Missed 143 | . 9 11 . 28 70 25 Hits 317 | . 43 19 . 42 162 51 Melee 2 | . . . . . . 2 Projectile 315 | . 43 19 . 42 162 49 AOE 1 | . 1 . . . . . Critical Strikes 5 | . 2 . . . 2 1 Damage Taken 3723 | . 501 394 . 503 1494 831 Core 912 | . 117 21 . 65 311 398 Absorbed by Shields . | . . . . . . . Ignored by Resistances 50 | . . . . . 33 17 Core Remaining (%) 83 | 100 53 . 94 88 . . Volleys Fired 156 | . 35 29 . 15 67 10 Largest 2 | . 2 2 . 2 2 2 Hottest 116 | . 46 46 . 46 111 116 Shots Fired 300 | . 70 58 . 30 122 20 Gun 300 | . 70 58 . 30 122 20 Cannon . | . . . . . . . Launcher . | . . . . . . . Special . | . . . . . . . Kinetic 177 | . 70 58 . 30 19 . Thermal 123 | . . . . . 103 20 Explosive . | . . . . . . . Electromagnetic . | . . . . . . . Robot Hit Streak 50 | . 12 8 . 13 50 3 Robot Miss Streak 9 | . 4 8 . 9 6 7 Penetration Max . | . . . . . . . Secondary Targets 3 | . . 2 . 1 . . Max Gunslinging Chain 1 | . . 1 . 1 . . Shots Hit Robots 195 | . 45 37 . 20 86 7 Core Hits 81 | . 17 17 . 11 31 5 Critical Kills 2 | . . 1 . 1 . . Critical Parts Destroyed 1 | . . 1 . . . . Critical Strikes 9 | . . 2 . 1 6 . Burn 6 | . . . . . 6 . Destroy 3 | . . 2 . 1 . . Melee Attacks . | . . . . . . . Impact . | . . . . . . . Slashing . | . . . . . . . Piercing . | . . . . . . . Sneak Attacks . | . . . . . . . Combat Hostiles . | . . . . . . . Follow-up Attacks . | . . . . . . . Damage Inflicted 2880 | . 583 488 . 180 1460 169 Guns 2868 | . 580 488 . 180 1460 160 Cannons . | . . . . . . . Explosions . | . . . . . . . Melee . | . . . . . . . Ramming 12 | . 3 . . . . 9 Kinetic 1407 | . 580 488 . 180 159 . Thermal 1461 | . . . . . 1301 160 Explosive . | . . . . . . . Electromagnetic . | . . . . . . . Impact . | . . . . . . . Slashing . | . . . . . . . Piercing . | . . . . . . . Highest Corruption 2 | . . 2 2 . 1 1 Average Corruption 1 | . . 2 2 . 1 1 Corruption Purged . | . . . . . . . Corruption Blocked . | . . . . . . . Effects 33 | . . 6 . . 4 23 Message Errors 11 | . . 2 . . 1 8 Matter Fused 6 | . . . . . 2 4 Heat Flow Errors 6 | . . 1 . . . 5 Energy Discharges 4 | . . 1 . . 1 2 Parts Rejected 1 | . . 1 . . . . Data Loss (minor) 3 | . . 1 . . . 2 Misfires 1 | . . . . . . 1 Alerts 1 | . . . . . . 1 Overload Shots . | . . . . . . . Overflow Damage . | . . . . . . . Projectiles . | . . . . . . . Explosions . | . . . . . . . Melee . | . . . . . . . Knockbacks . | . . . . . . . Impact . | . . . . . . . Kinetic . | . . . . . . . Secondary . | . . . . . . . Self-Inflicted Damage 230 | . 1 226 . . . 3 Shots 2 | . . 2 . . . . Rammed 9 | . 1 . . . . 8 Targets Rammed 9 | . 1 . . . . 8 Kicked . | . . . . . . . Crushed . | . . . . . . . Highest Temperature 441 | . 28 222 . 20 441 263 Average Temperature 91 | . 13 47 . 7 118 96 Received Heat Transfer 789 | . 111 30 . 54 486 108 Effects 13 | . . 1 . . 12 . Shutdowns 1 | . . . . . 1 . Energy Bleed 3 | . . 1 . . 2 . Matter Decay 2 | . . . . . 2 . Short Circuit 1 | . . . . . 1 . Damage (major) 6 | . . . . . 6 . Siege Activations . | . . . . . . . Martial Activations . | . . . . . . . Shielding Activations . | . . . . . . . Robots Disrupted . | . . . . . . . Combat Hostiles . | . . . . . . . Robots Corrupted . | . . . . . . . Combat Hostiles . | . . . . . . . Parts Fried . | . . . . . . . Impact Corruptions . | . . . . . . . Robots Melted 1 | . . . . . 1 . Combat Hostiles 1 | . . . . . 1 . Parts Melted 14 | . . . . . 13 1 Heat Transferred 3256 | . . . . . 2960 296 Parts Sabotaged . | . . . . . . . Parts Stolen . | . . . . . . . Parts Stripped . | . . . . . . . Power Chain Reactions . | . . . . . . . Alert | -11 -10 -9 -9 -8 -7 -7 ------- Run | Yrd Mat Mat Min Mat Fac Low Maximum Alert Level 1 | . . 1 . . . . Low Security (%) 98 | 100 100 92 100 100 100 . Level 1 1 | . . 7 . . . . Level 2 . | . . . . . . . Level 3 . | . . . . . . . Level 4 . | . . . . . . . Level 5 . | . . . . . . . High Security . | . . . . . . . Max Security . | . . . . . . . Peak Influence 241 | . 86 241 90 83 59 . Initial 90 | . . . 90 23 11 . Average 28 | . 34 62 77 28 13 . Influence Increases 1274 | . 198 371 . 165 305 235 Destroy 0b10 Robot/C 680 | . 100 220 . 120 200 40 Destroy 0b10 Robot/NC 50 | . 25 10 . . 15 . Destroy Leader 158 | . 22 34 . 30 72 . Successful Hack 11 | . 4 7 . . . . Disable Machine 30 | . . 30 . . . . Destroy Structure 30 | . 2 25 . . 3 . Partial Spotted 30 | . . 15 . . 15 . Lose Combat Pursuer 285 | . 45 30 . 15 . 195 Influence Decreases 1217 | . 198 140 171 200 306 202 Entered New Map 202 | . . . 141 37 14 10 Time Decay 813 | . 168 120 30 90 263 142 Lost Part 202 | . 30 20 . 73 29 50 Squads Dispatched 3 | . . 1 . . 2 . Investigation . | . . . . . . . Extermination 2 | . . . . . 2 . Reinforcement 1 | . . 1 . . . . Assault . | . . . . . . . Garrison . | . . . . . . . Intercept . | . . . . . . . Searches Triggered . | . . . . . . . Construction Impeded . | . . . . . . . Haulers Reinforced . | . . . . . . . Active Scanning Responses . | . . . . . . . Cargo Convoy Interrupts . | . . . . . . . Stealth | -11 -10 -9 -9 -8 -7 -7 --------- Run | Yrd Mat Mat Min Mat Fac Low Distress Signals 6 | . 2 2 . 1 1 . Communications Jammed . | . . . . . . . Distress Signals . | . . . . . . . Times Spotted 73 | . 16 18 . 10 15 14 Peak Tracking Total 8 | . 3 5 . 5 2 8 Tactical Retreats 13 | . 2 2 . 1 . 8 Traps | -11 -10 -9 -9 -8 -7 -7 ------- Run | Yrd Mat Mat Min Mat Fac Low Traps Triggered 1 | . . 1 . . . . Indirectly . | . . . . . . . Trap Hack Attempts . | . . . . . . . Triggered . | . . . . . . . Disarmed . | . . . . . . . Reprogrammed . | . . . . . . . Reused . | . . . . . . . Traps Extracted . | . . . . . . . Installed . | . . . . . . . Triggered . | . . . . . . . Machines | -11 -10 -9 -9 -8 -7 -7 ---------- Run | Yrd Mat Mat Min Mat Fac Low Machines Disabled 2 | . . 2 . . . . Max in Single Turn 2 | . . 2 . . . . Machines Repaired . | . . . . . . . Machines Dismantled . | . . . . . . . Machines Sabotaged . | . . . . . . . Overloaded Fab Kills . | . . . . . . . Hacking | -11 -10 -9 -9 -8 -7 -7 --------- Run | Yrd Mat Mat Min Mat Fac Low Machines Accessed 7 | . 3 3 . 1 . . Terminals 5 | . 2 2 . 1 . . Fabricators . | . . . . . . . Repair Stations . | . . . . . . . Recycling Units 2 | . 1 1 . . . . Scanalyzers . | . . . . . . . Garrison Access . | . . . . . . . Total Hacks 16 | . 7 7 . 2 . . Successful 7 | . 3 4 . . . . Failed 9 | . 4 3 . 2 . . Catastrophic . | . . . . . . . Database Lockouts . | . . . . . . . Manual . | . . . . . . . Terminals 13 | . 5 6 . 2 . . Fabricators . | . . . . . . . Repair Stations . | . . . . . . . Recycling Units 3 | . 2 1 . . . . Scanalyzers . | . . . . . . . Garrison Access . | . . . . . . . Terminal Hacks 5 | . 2 3 . . . . Branch Access Points 1 | . . 1 . . . . Emergency Access Points 1 | . . 1 . . . . Terminal Index 1 | . 1 . . . . . Alert Level 1 | . . 1 . . . . Locate Traps 1 | . 1 . . . . . Fabricator Hacks . | . . . . . . . Repair Station Hacks . | . . . . . . . Recycling Unit Hacks 2 | . 1 1 . . . . Report Inventory 2 | . 1 1 . . . . Scanalyzer . | . . . . . . . Garrison Access Hacks . | . . . . . . . Unauthorized Hacks . | . . . . . . . Terminals . | . . . . . . . Fabricators . | . . . . . . . Repair Stations . | . . . . . . . Recycling Units . | . . . . . . . Scanalyzers . | . . . . . . . Garrison Access . | . . . . . . . Data Cores Recovered 1 | . 1 . . . . . Used . | . . . . . . . Hacking Detections 3 | . 2 . . 1 . . Full Trace Events . | . . . . . . . Feedback Events . | . . . . . . . Feedback Blocked . | . . . . . . . Robot Schematics Acquired . | . . . . . . . Robots Built . | . . . . . . . Authchips . | . . . . . . . Time . | . . . . . . . Total Robot Build Rating . | . . . . . . . Part Schematics Acquired . | . . . . . . . Parts Built . | . . . . . . . Authchips . | . . . . . . . Time . | . . . . . . . Total Part Build Rating . | . . . . . . . Parts Repaired . | . . . . . . . Time . | . . . . . . . Parts Recycled . | . . . . . . . Recycled Matter . | . . . . . . . Retrieved Matter . | . . . . . . . Retrieved Components . | . . . . . . . Parts Scanalyzed . | . . . . . . . Part Schematics Acquired . | . . . . . . . Parts Damaged . | . . . . . . . Bothacking | -11 -10 -9 -9 -8 -7 -7 ------------ Run | Yrd Mat Mat Min Mat Fac Low Used RIF Installer . | . . . . . . . Robots Hacked . | . . . . . . . Non-combat . | . . . . . . . Combat . | . . . . . . . Robot Hacks Applied . | . . . . . . . Relay Couplers Released . | . . . . . . . Fabnet Peak Effective % . | . . . . . . . Robots Rewired . | . . . . . . . Allies Hacked . | . . . . . . . Hacks Repelled . | . . . . . . . Allies | -11 -10 -9 -9 -8 -7 -7 -------- Run | Yrd Mat Mat Min Mat Fac Low Total Allies . | . . . . . . . Largest Group . | . . . . . . . Highest-Rated Group . | . . . . . . . Highest-Rated Ally . | . . . . . . . Total Orders . | . . . . . . . Ally Attacks . | . . . . . . . Total Damage . | . . . . . . . Kills . | . . . . . . . Allies Corrupted . | . . . . . . . Allies Melted . | . . . . . . . Intel | -11 -10 -9 -9 -8 -7 -7 ------- Run | Yrd Mat Mat Min Mat Fac Low Active Infowar (turns) 1102 | . . 214 67 206 615 . Optics 1102 | . . 214 67 206 615 . ECM 1 | . . . 1 . . . Robot Analysis Total . | . . . . . . . Derelict Logs Recovered . | . . . . . . . Drone Launches . | . . . . . . . Drone Recoveries . | . . . . . . . Exploration | -11 -10 -9 -9 -8 -7 -7 ------------- Run | Yrd Mat Mat Min Mat Fac Low Turns Passed 5557 | 48 507 310 67 206 1025 3394 Spaces Moved 2474 | 41 352 448 185 309 427 712 Core 770 | 11 . . . . 47 712 Treads 173 | . . . . . 173 . Legs . | . . . . . . . Wheels 382 | 30 352 . . . . . Hover 64 | . . . . . 64 . Flight 1085 | . . 448 185 309 143 . Fastest Speed 28 | 50 90 34 34 28 31 200 Average Speed 193 | 79 97 34 34 35 174 468 Slowest Speed 600 | 90 100 117 34 197 600 550 Overloaded Moves . | . . . . . . . Propulsion Burnouts . | . . . . . . . Robots Hopped 8 | . . 3 3 1 1 . Potential Cave-ins . | . . . . . . . Cave-ins Triggered . | . . . . . . . Exploration Rate (%) 32 | 3 42 30 49 21 12 71 Regions Visited 6 Branch Regions 2 Pre-discovered Areas . | . . . . . . . Known Exits Taken 2 | . . 1 . . 1 . Unknown Exits Taken 4 | 1 1 . 1 1 . . Scrap Searched 1 | . . . 1 . . . Spaces Dug . | . . . . . . . Terrain Destroyed 31 | . . 31 . . . . Melee . | . . . . . . . Projectile . | . . . . . . . AOE 31 | . . 31 . . . . Terrain Rammed . | . . . . . . . Walls Destroyed . | . . . . . . . Machines Disabled . | . . . . . . . Actions | -11 -10 -9 -9 -8 -7 -7 --------- Run | Yrd Mat Mat Min Mat Fac Low Total 2941 | 55 447 544 186 376 593 740 Wait 171 | . 29 40 . 28 72 2 Move 2453 | 40 351 441 179 306 424 712 Hop 7 | . . 3 2 1 1 . Pick Up 64 | 8 17 9 2 13 13 2 Fast Attach . | . . . . . . . Attach 47 | 6 4 9 1 11 11 5 Detach 1 | . . 1 . . . . Swap 11 | 1 3 4 . 1 2 . Drop 22 | . 7 8 2 1 3 1 Fire 156 | . 35 29 . 15 67 10 Melee . | . . . . . . . Ram 9 | . 1 . . . . 8 Kick . | . . . . . . . Crush . | . . . . . . . Escape Stasis . | . . . . . . . Rewire . | . . . . . . . Trap . | . . . . . . . Miscellaneous . | . . . . . . . Route ------- -11/Scrapyard -10/Materials -9/Materials -9/Mines -8/Materials -7/Factory -7/Lower Caves History --------- Turn | Location | Event 17 | -11/Scrapyard | Discovered new exit (range 15) 49 | -11/Scrapyard | Entered Materials 316 | -10/Materials | Build established: Mutant 521 | -10/Materials | Discovered new exit (range 16) 556 | -10/Materials | Entered another Materials area 556 | -9/Materials | Evolved 2 slots: Power x1, Propulsion x1 823 | -9/Materials | Identified exit to Mines 866 | -9/Materials | Entered Mines 897 | -9/Mines | Build established: Scavenger-Mutant 931 | -9/Mines | Discovered new exit (range 5) 933 | -9/Mines | Entered Materials 933 | -8/Materials | Evolved 2 slots: Propulsion x2 993 | -8/Materials | Lost 3 parts (3n) 1136 | -8/Materials | Discovered new exit (range 10) 1139 | -8/Materials | Entered Factory 1139 | -7/Factory | Evolved 2 slots: Utility x2 1239 | -7/Factory | Lost 7 parts (2p4n1w) 2039 | -7/Factory | Build established: Mutant 2057 | -7/Factory | Discovered new exit (range 5) 2158 | -7/Factory | Identified exit to Lower Caves 2164 | -7/Factory | Entered Lower Caves 5522 | -7/Lower Caves | Attracted the attention of an 0b10 outpost 5534 | -7/Lower Caves | Core integrity fell below 50% 5554 | -7/Lower Caves | Core integrity fell below 20% 5558 | -7/Lower Caves | Destroyed by G-47 Trooper with Particle Gun Last Messages --------------- DERELICT." 05522_ Hvy. Particle Gun destroyed. 05522_ Slug penetrates Wall. 05526_ Y-64 Sentinel: "REQUESTING BACKUP." 05535_ Adv. Beam Rifle destroyed. 05536_ Slammed into S-27 Virus. 05537_ Enh. Nuclear Core destroyed. 05539_ Slammed into S-27 Virus. 05539_ Destabilizing: System interference. 05539_ Imp. Targeting Computer temporarily disabled. 05543_ Slammed into S-27 Virus. 05550_ Acquired 3 matter. 05550_ Lgt. Ion Engine destroyed. 05552_ Slammed into G-47 Trooper. 05554_ Slammed into B-48 Gladiator. 05555_ Slug penetrates L-41 Fighter. 05556_ Slammed into B-48 Gladiator. 05557_ Med. Storage Unit destroyed. 05558_ Penetrated by Slug. Map ----- +----------------------------------------------------+ | ?????????????????????????????????????????????????? | | ?????????????????????????????????????????????????? | | ?????????????????????????????????????????????????? | | ?????????????????????????????????????????????????? | | ?????????????????????????????????????????????????? | | ?????????????????????????????????????????????????? | | ?????????????????????????????????????????????????? | | ?????????????????????????????????????????????????? | | ?????????????????????????????????????????????????? | | ?????????????????????????????????????????????????? | | ?????????????????????????????????????????????????? | | ?????????????????????????????????????????????????? | | ?????????????????????????????????????????????????? | | ????????????????????????????#####?????????######## | | ?????????????????#????####??# ####???#### # | | ?????????????##### ??## ##?# ##?## # | | ????????????? ??# ### ### # | | ?????????????? #?# | | ??????????????? ### | | ???????????????# ### | | ???????????????# ?# h## | | ???????????????# ?# ### | | ???????????????# ?##ss#?## ## | | ???????????????# ??#g##?#### ## | | ??????????????## ###%#?# #### ### | | ?????????????## l@## #?# ##?## ## | | ?????????????# gYb #?## ##???# ### | | ??????? ##??###????# ### | | ??????? ## ##?????????## ## | | ??????? ## #####?##?????????## # | | ????????? ?????????????????# #### | | ???????? ## ## ?????????????????# #??# | | ??????????# ??# ?????????????????# ## #??# | | ??????????# ???# ????????????????####### ##?# | | ??????????#??????# ????????????????# "## ### | | ?????????????????+ ????????????????#"" ## | | ???????????????? # ????????????????#""" | | ???????????????""# ?????????????????# "" | | ?????????????????# #?????????????????#" ## | | ????????????????? ??????????????????#### # | | ?????????????????##?????????????????????## ## | | ?????????????????????????????????????????# ##? | | ?????????????????????????????????????????# ##?# | | ?????????????????????????????????????????## #### | | ??????????????????????????????????????????# ## | | ??????????????????????????????????????????# # | | ??????????????????????????????????????????# | | ??????????????????????????????????????????# ## | | ??????????????????????????????????????????# ### | | ????????????????????????????????????????###!%#?# | +----------------------------------------------------+ Best States ------------- Heat Dissipation 34 Energy Generation 26 Energy Capacity 340 Matter Stores 300 Matter Capacity 300 Sight Range 18 Terrain Scan Density 10 Armor Coverage 150 Resistance: KI 20 Evasion (%) 64 Target Analysis 5 Recoil Reduction 2 Offensive Hacking 10 Item Schematics ----------------- None Robot Schematics ------------------ None Fabricated ------------ Nothing Repaired ---------- Nothing Alien Tech Used ----------------- None Achievements -------------- None Challenges ------------ None Game ------ Seed ClaymoresHardenedMount Manual? 0 Play Time 00:57:26 Cumulative 5.7 hours Start 2025.09.04 @ 08:25:39 End 2025.09.04 @ 14:58:54 Sessions 1 Manual Loads 0 Difficulty Rogue Special Mode None Game No. 8 Rogue 8 Adventurer 0 Explorer 0 Win Type - Total 0 Types 0/0/0/0/0/0/0/0/0/0 Lore% 5 Gallery% 8 Achievement% 10 Wizard Run 0 Options --------- Layout 1 ASCII 0 Keyboard 0 Movement Numpad Keybinds 0 Fullscreen 1 Font 24/Terminus Map View 25x17 Zoom Use 46% Tactical HUD 1 Map Filters NONE Filters NONE Steam 1 RUN: ab339493-a6e8-40a2-b246-3deef3d7798c